bitfinex-derivatives/quotes_SOLF0:USTF0_20241021
["timestamp","ask_amount","ask_price","bid_price","bid_amount"]
[1729549480709,12.1426,167.68,167.65,1.49084507]
[1729549480904,12.1426,167.68,167.65,1.49111568]
[1729549481218,9.16,167.68,167.64,1.49111568]
[1729549481513,9.16,167.66,167.64,1.49111568]
[1729549481912,9.16,167.66,167.64,4.47441568]
[1729549482315,9.16,167.66,167.64,2.9833]
[1729549486519,9.16,167.66,167.63,2.9834]
[1729549487630,9.16,167.65,167.63,2.9834]
[1729549489231,12.1431,167.65,167.62,4.22]
[1729549490219,12.1431,167.65,167.62,7.2036]
[1729549490626,12.1431,167.65,167.62,2.9836]
[1729549491230,3.03936744,167.69,167.61,4.22]
[1729549491429,4.22,167.69,167.64,2.9833]
[1729549491625,9.16,167.67,167.64,2.9833]
[1729549495333,9.16,167.67,167.62,2.9835]
[1729549495536,2.94040953,167.69,167.64,9.16]
[1729549495834,9.16,167.69,167.64,9.16]
[1729549496635,12.1424,167.69,167.66,2.9828]
[1729549497635,9.16,167.68,167.66,2.9828]
[1729549507839,12.1424,167.69,167.66,2.9828]
[1729549512834,12.1428,167.67,167.64,2.9833]
[1729549514532,2.90802224,167.7,167.63,9.16]
[1729549514533,9.16,167.68,167.63,9.16]
[1729549514737,9.16,167.69,167.66,2.9829]
[1729549515136,9.16,167.71,167.66,9.16]
[1729549515444,12.1421,167.71,167.68,2.9826]
[1729549515637,2.9821,167.71,167.68,2.9826]
[1729549522136,9.16,167.7,167.68,2.9826]
[1729549522336,12.1422,167.7,167.68,2.9826]
[1729549526244,12.1422,167.7,167.66,9.16]
[1729549526449,12.1422,167.7,167.67,2.9827]
[1729549535354,2.9821,167.71,167.68,2.9825]
[1729549535550,2.9821,167.71,167.67,9.16]
[1729549536858,2.9821,167.71,167.68,2.9825]
[1729549539451,2.9821,167.71,167.68,4.4735045]
[1729549540358,2.9821,167.71,167.69,1.4910045]
[1729549542561,2.9821,167.71,167.68,2.9825]
[1729549542759,2.9821,167.71,167.69,1.49100441]
[1729549546167,2.9821,167.71,167.69,1.49102775]
[1729549550266,2.9821,167.71,167.68,2.9825]
[1729549550462,2.9821,167.71,167.69,1.49102616]
[1729549551863,12.1421,167.71,167.69,1.49102616]
[1729549553359,12.1421,167.71,167.68,2.9825]
[1729549553559,12.1421,167.71,167.69,1.49102843]
[1729549554163,9.16,167.71,167.69,1.49102843]
[1729549554962,9.16,167.71,167.68,2.9825]
[1729549555164,9.16,167.71,167.69,1.49102616]
[1729549556367,3.02822049,167.73,167.7,2.9821]
[1729549556569,12.1416,167.74,167.69,10.65102616]
[1729549557068,15.17386933,167.74,167.69,9.16]
[1729549557266,15.17386933,167.74,167.69,10.65097749]
[1729549557969,15.17386933,167.74,167.71,2.982]
[1729549558569,12.19226933,167.74,167.69,10.65097749]
[1729549558766,3.00006507,167.76,167.72,9.16]
[1729549559767,9.16,167.77,167.72,9.16]
[1729549560076,2.9814,167.75,167.71,4.47287749]
[1729549560373,9.16,167.76,167.7,10.65097749]
[1729549560573,9.16,167.76,167.7,9.16]
[1729549560872,9.16,167.76,167.71,1.49088721]
[1729549561061,9.16,167.76,167.7,9.16]
[1729549561260,2.9814,167.75,167.72,2.9817]
[1729549561671,2.99577239,167.77,167.71,10.65088721]
[1729549561974,12.141,167.77,167.74,2.9814]
[1729549562277,3.00292719,167.76,167.74,2.9814]
[1729549563274,2.9812,167.76,167.73,12.1416]
[1729549563471,6.0368938,167.76,167.73,2.9816]
[1729549563663,2.9812,167.76,167.73,2.9816]
[1729549563869,2.9817,167.73,167.7,1.49073757]
[1729549564069,12.1417,167.73,167.69,4.22]
[1729549564270,12.1417,167.73,167.69,5.71073757]
[1729549564577,12.1417,167.73,167.7,2.9822]
[1729549565770,2.9817,167.73,167.7,2.9822]
[1729549566074,2.9817,167.73,167.7,4.47293757]
[1729549568874,2.9817,167.73,167.7,2.9822]
[1729549569076,2.9817,167.73,167.7,4.47309559]
[1729549570181,12.142,167.71,167.7,1.49089559]
[1729549570383,9.16,167.71,167.67,1.49089559]
[1729549570676,2.9822,167.7,167.67,4.47359559]
[1729549571180,2.9822,167.7,167.67,2.9827]
[1729549571571,2.9822,167.7,167.67,4.47381762]
[1729549573075,12.1421,167.71,167.67,4.47381762]
[1729549573281,12.1421,167.71,167.67,1.49111762]
[1729549573481,127.14291071,167.75,167.71,2.9819]
[1729549573685,12.1416,167.74,167.69,9.16]
[1729549573883,9.16,167.73,167.69,1.49111762]
[1729549574574,12.1417,167.73,167.69,4.47341762]
[1729549575175,12.1417,167.73,167.69,4.47328752]
[1729549575773,12.1417,167.73,167.69,13.63328752]
[1729549575973,12.1417,167.73,167.69,12.1423]
[1729549576375,12.1417,167.73,167.69,13.63328752]
[1729549576578,12.1417,167.73,167.69,12.1423]
[1729549577079,12.1417,167.73,167.69,10.65098752]
[1729549577279,12.1417,167.73,167.7,2.9822]
[1729549577583,9.16,167.73,167.7,2.9822]
[1729549577781,12.1416,167.74,167.7,2.9822]
[1729549578877,2.9816,167.74,167.7,12.1422]
[1729549579080,2.9816,167.74,167.7,16.3622]
[1729549579584,2.9816,167.74,167.71,2.982]
[1729549580080,122.92291071,167.75,167.72,1.49097032]
[1729549580584,122.92291071,167.75,167.72,4.47277032]
[1729549580881,122.92291071,167.75,167.73,1.49097032]
[1729549581681,122.92291071,167.75,167.72,4.47277032]
[1729549582290,122.92291071,167.75,167.73,1.49097032]
[1729549582480,122.92291071,167.75,167.72,2.9818]
[1729549582677,122.92291071,167.75,167.72,4.47248306]
[1729549583281,122.92291071,167.75,167.73,1.49068306]
[1729549583483,122.92291071,167.75,167.72,2.9818]
[1729549583687,122.92291071,167.75,167.72,4.47248466]
[1729549586385,122.92291071,167.75,167.72,4.47247582]
[1729549587790,122.92291071,167.75,167.72,1.49067582]
[1729549588089,122.92291071,167.75,167.73,2.9817]
[1729549596096,9.16,167.74,167.71,1.49068461]
[1729549596298,122.92291071,167.75,167.7,4.22]
[1729549596299,9.16,167.73,167.7,4.22]
[1729549597100,12.1417,167.73,167.7,4.22]
[1729549599806,12.1417,167.73,167.69,8.69298461]
[1729549601806,12.1417,167.73,167.69,17.85325192]
[1729549601999,12.1417,167.73,167.69,16.3623]
[1729549602204,12.1417,167.73,167.7,1.49095192]
[1729549603702,2.9817,167.73,167.7,1.49095192]
[1729549603903,3.03661435,167.76,167.72,12.1417]
[1729549604101,3.03661435,167.76,167.72,9.16]
[1729549604301,3.03661435,167.76,167.73,9.16]
[1729549604497,10.4368,167.78,167.73,9.16]
[1729549606003,2.9813,167.76,167.73,12.1416]
[1729549606201,5.99209395,167.76,167.73,12.1416]
[1729549606510,5.99209395,167.76,167.73,13.63228233]
[1729549606811,5.99209395,167.76,167.73,12.1416]
[1729549607206,2.9809,167.78,167.74,12.1413]
[1729549607401,2.9809,167.78,167.74,9.16]
[1729549607608,9.16,167.8,167.76,9.16]
[1729549607908,2.9808,167.79,167.76,12.1411]
[1729549608110,9.16,167.83,167.77,9.16]
[1729549608310,9.16,167.83,167.78,9.16]
[1729549608510,1.3005,167.84,167.78,9.16]
[1729549609213,2.9801,167.83,167.79,2.9806]
[1729549610505,3.05090203,167.86,167.82,9.16]
[1729549610703,1.2259,167.87,167.82,9.16]
[1729549611104,1.2259,167.87,167.82,12.14]
[1729549611105,2.9795,167.86,167.82,12.14]
[1729549611608,4.21934842,167.87,167.82,12.14]
[1729549611801,2.9796,167.85,167.82,12.14]
[1729549614308,2.98,167.83,167.81,4.22]
[1729549615610,4.21934842,167.87,167.81,16.3602]
[1729549615816,9.16,167.86,167.81,16.3602]
[1729549616407,2.9797,167.85,167.82,2.9801]
[1729549618011,2.99344842,167.87,167.84,9.16]
[1729549618214,2.9792,167.87,167.84,12.1396]
[1729549618415,3.02080231,167.86,167.84,12.1396]
[1729549619217,2.9792,167.87,167.84,12.1396]
[1729549619617,5.95024652,167.87,167.84,12.1396]
[1729549620112,2.97104652,167.87,167.84,9.16]
[1729549620313,2.9794,167.86,167.84,9.16]
[1729549620515,5.9710043,167.86,167.84,9.16]
[1729549622324,0.05631396,167.89,167.84,9.16]
[1729549622626,2.9791,167.88,167.85,12.1395]
[1729549622925,5.90141415,167.88,167.85,12.1395]
[1729549623822,0.05631396,167.89,167.87,2.9792]
[1729549624120,0.05631396,167.89,167.87,12.1392]
[1729549625018,0.05631396,167.89,167.87,9.16]
[1729549625219,0.05631396,167.89,167.88,12.139]
[1729549626728,0.09986014,167.9,167.88,9.16]
[1729549627031,0.14847384,167.91,167.89,13.36]
[1729549627233,0.13164227,167.92,167.91,9.16]
[1729549627528,0.34176935,167.93,167.91,9.16]
[1729549628021,0.34176935,167.93,167.92,2.9783]
[1729549628323,0.59356092,167.97,167.91,9.16]
[1729549628514,0.59356092,167.97,167.95,9.16]
[1729549628718,0.59356092,167.97,167.96,4.2]
[1729549629526,0.59356092,167.97,167.96,7.1776]
[1729549630728,0.59356092,167.97,167.96,4.2]
[1729549630926,0.59356092,167.97,167.96,13.36]
[1729549632725,3.57096092,167.97,167.95,4.2]
[1729549633525,0.59356092,167.97,167.88,1.3164]
[1729549633834,9.75356092,167.97,167.91,9.16]
[1729549634430,2.9778,167.95,167.91,12.1384]
[1729549634834,0.59356092,167.97,167.94,9.16]
[1729549635129,0.59356092,167.97,167.94,13.36]
[1729549635926,2.9776,167.96,167.94,4.2]
[1729549640831,2.9776,167.96,167.93,2.9781]
[1729549641028,2.9776,167.96,167.94,4.2]
[1729549643434,9.75356092,167.97,167.94,4.2]
[1729549643631,0.59356092,167.97,167.95,9.16]
[1729549643836,0.59356092,167.97,167.95,12.1376]
[1729549644032,0.59356092,167.97,167.95,9.16]
[1729549644831,0.59356092,167.97,167.96,2.9776]
[1729549645226,0.59356092,167.97,167.96,12.1376]
[1729549645830,0.58650955,167.98,167.97,2.9774]
[1729549647541,0.58650955,167.98,167.97,12.1374]
[1729549657142,0.58650955,167.98,167.97,16.3374]
[1729549660953,0.58650955,167.98,167.97,7.1774]
[1729549661143,0.58650955,167.98,167.97,16.3374]
[1729549661641,9.74650955,167.98,167.91,65.5479]
[1729549661954,9.16,167.96,167.92,4.2]
[1729549662154,9.16,167.96,167.92,13.36]
[1729549662654,12.1377,167.96,167.92,16.3382]
[1729549665648,9.16,167.96,167.92,16.3382]
[1729549665844,12.1376,167.96,167.92,16.3382]
[1729549666357,0.58650955,167.98,167.94,2.9779]
[1729549666358,3.56390955,167.98,167.94,2.9779]
[1729549668151,0.58650955,167.98,167.95,2.9777]
[1729549668455,0.58650955,167.98,167.96,4.2]
[1729549673858,3.56370955,167.98,167.96,4.2]
[1729549676766,3.56370955,167.98,167.96,13.36]
[1729549676957,3.56370955,167.98,167.96,4.2]
[1729549677159,3.56370955,167.98,167.96,13.36]
[1729549677360,0.58650955,167.98,167.97,12.1374]
[1729549679766,0.58650955,167.98,167.96,7.1775]
[1729549680267,0.58650955,167.98,167.96,4.2]
[1729549681866,3.56390955,167.98,167.96,4.2]
[1729549684768,0.58650955,167.98,167.96,4.2]
[1729549685873,3.56380955,167.98,167.96,4.2]
[1729549692679,0.58650955,167.98,167.96,13.36]
[1729549692871,0.58650955,167.98,167.97,9.16]
[1729549694077,0.58650955,167.98,167.96,16.3375]
[1729549696583,0.58650955,167.98,167.96,17.82605762]
[1729549696784,0.58650955,167.98,167.96,16.3375]
[1729549697787,0.58650955,167.98,167.96,17.82605762]
[1729549698088,0.58650955,167.98,167.96,16.3375]
[1729549699387,0.58650955,167.98,167.96,17.82605762]
[1729549699690,0.58650955,167.98,167.96,16.3375]
[1729549700802,0.58650955,167.98,167.96,17.82605762]
[1729549701002,0.58650955,167.98,167.97,12.1374]
[1729549701201,0.19259268,167.99,167.97,9.16]
[1729549701396,0.19259268,167.99,167.97,10.64855762]
[1729549701603,0.19259268,167.99,167.98,1.48855762]
[1729549703102,0.19259268,167.99,167.97,4.2]
[1729549703994,3.16969268,167.99,167.97,4.2]
[1729549708907,0.19259268,167.99,167.97,4.2]
[1729549709102,2.9772,167.98,167.97,4.2]
[1729549711508,2.9772,167.98,167.97,5.68854589]
[1729549711708,2.9772,167.98,167.97,4.2]
[1729549712802,2.9772,167.98,167.97,5.68854589]
[1729549713113,2.9772,167.98,167.97,4.2]
[1729549713413,2.9772,167.98,167.97,5.68854589]
[1729549713600,2.9772,167.98,167.97,4.2]
[1729549713805,2.9772,167.98,167.97,5.68854589]
[1729549714007,2.9772,167.98,167.97,4.2]
[1729549714310,2.9772,167.98,167.97,5.68854589]
[1729549714508,2.9772,167.98,167.97,4.2]
[1729549714706,2.9772,167.98,167.97,5.68854589]
[1729549714912,2.9772,167.98,167.97,4.2]
[1729549715813,2.9772,167.98,167.97,5.68855319]
[1729549716115,2.9774,167.97,167.96,1.48855319]
[1729549716318,9.16,167.96,167.93,4.2]
[1729549716617,2.9778,167.95,167.94,1.48855319]
[1729549716912,9.16,167.96,167.91,1.48855319]
[1729549717106,9.16,167.92,167.88,4.2]
[1729549717304,9.16,167.9,167.89,1.48855319]
[1729549718314,9.16,167.9,167.88,5.68855319]
[1729549719111,9.16,167.9,167.88,4.2]
[1729549719511,9.16,167.9,167.88,5.68918409]
[1729549719815,9.16,167.9,167.88,4.2]
[1729549723822,12.1387,167.9,167.88,4.2]
[1729549724011,9.16,167.89,167.88,4.2]
[1729549724316,9.16,167.89,167.84,5.68919092]
[1729549724519,9.16,167.85,167.84,5.68919092]
[1729549724822,9.16,167.85,167.83,4.2]
[1729549725618,12.1395,167.85,167.83,4.2]
[1729549725807,9.16,167.86,167.83,4.2]
[1729549726213,12.1395,167.86,167.83,4.2]
[1729549728021,12.1395,167.86,167.82,2.9801]
[1729549728222,12.1395,167.86,167.83,4.2]
[1729549728619,2.9795,167.86,167.83,4.2]
[1729549736035,3.8882,167.91,167.84,9.16]
[1729549736226,9.16,167.92,167.87,9.16]
[1729549736627,2.9786,167.91,167.87,12.1391]
[1729549736931,2.9786,167.91,167.87,13.36]
[1729549737833,2.9786,167.91,167.88,2.979]
[1729549742141,3.04599053,167.92,167.87,13.36]
[1729549742344,2.9788,167.9,167.87,16.3391]
[1729549742640,9.16,167.93,167.87,13.36]
[1729549742942,2.9785,167.91,167.87,13.36]
[1729549743648,5.93845652,167.92,167.89,2.9787]
[1729549743937,2.9783,167.92,167.89,2.9787]
[1729549744138,9.16,167.94,167.88,9.16]
[1729549744139,2.9783,167.93,167.9,2.9786]
[1729549744543,3.8288,167.97,167.9,9.16]
[1729549744734,11.7378,167.97,167.92,9.16]
[1729549745241,2.9779,167.95,167.92,12.1382]
[1729549745633,9.16,167.95,167.91,4.2]
[1729549745833,2.9782,167.93,167.91,4.2]
[1729549746033,3.03204608,167.92,167.91,4.2]
[1729549746234,9.16,167.94,167.91,4.2]
[1729549746639,2.9781,167.93,167.91,4.2]
[1729549746848,2.99363183,167.92,167.91,4.2]
[1729549747140,2.9781,167.93,167.91,4.2]
[1729549747733,2.5778,167.97,167.91,16.3383]
[1729549747734,2.9779,167.95,167.91,16.3383]
[1729549748743,2.978,167.94,167.91,16.3383]
[1729549751945,0.74765675,168.0,167.93,9.16]
[1729549752147,2.9776,167.97,167.93,12.138]
[1729549753553,2.9776,167.97,167.94,2.9779]
[1729549757160,2.9779,167.95,167.92,4.2]
[1729549757560,9.16,167.96,167.92,4.2]
[1729549757758,2.978,167.94,167.92,4.2]
[1729549757960,9.16,167.96,167.92,4.2]
[1729549758866,2.9779,167.95,167.92,4.2]
[1729549763866,2.9779,167.95,167.91,7.1784]
[1729549764068,2.9779,167.95,167.91,2.9784]
[1729549766282,9.16,167.96,167.87,1.225]
[1729549766283,9.16,167.94,167.87,1.225]
[1729549766472,9.16,167.94,167.88,13.36]
[1729549766473,2.9784,167.92,167.88,13.36]
[1729549766773,2.9551611,167.91,167.88,13.36]
[1729549767176,2.9784,167.92,167.89,12.1387]
[1729549767670,6.00085921,167.92,167.89,12.1387]
[1729549767870,2.9784,167.92,167.89,12.1387]
[1729549768474,2.9782,167.93,167.9,2.9786]
[1729549768776,2.9782,167.93,167.9,12.1386]
[1729549774179,2.9779,167.95,167.91,2.9783]
[1729549774481,2.9779,167.95,167.91,9.16]
[1729549775178,0.19259268,167.99,167.94,9.16]
[1729549775371,0.19259268,167.99,167.95,9.16]
[1729549775880,2.9773,167.98,167.95,12.1377]
[1729549776978,2.9773,167.98,167.95,2.9777]
[1729549780685,2.9773,167.98,167.94,16.3379]
[1729549783588,2.9773,167.98,167.95,9.16]
[1729549785882,2.9773,167.98,167.95,12.1377]
[1729549787681,3.16969268,167.99,167.95,12.1377]
[1729549788486,9.35259268,167.99,167.95,4.2]
[1729549789183,9.35259268,167.99,167.95,13.36]
[1729549789691,0.19259268,167.99,167.97,9.16]
[1729549790190,0.19259268,167.99,167.97,12.1373]
[1729549791083,3.16969268,167.99,167.97,12.1373]
[1729549791683,3.16969268,167.99,167.97,2.9773]
[1729549793386,3.16969268,167.99,167.96,2.9775]
[1729549795989,2.9773,167.98,167.96,2.9775]
[1729549796493,2.9777,167.96,167.93,4.2]
[1729549796701,9.16,167.96,167.93,4.2]
[1729549797699,0.19259268,167.99,167.94,9.16]
[1729549798200,2.9775,167.97,167.94,12.1378]
[1729549798394,2.9775,167.97,167.94,2.9778]
[1729549798801,2.9776,167.96,167.94,2.9778]
[1729549798997,2.9776,167.96,167.93,16.3381]
[1729549802797,2.9778,167.96,167.93,16.3382]
[1729549803001,9.16,167.98,167.93,16.3382]
[1729549803497,2.9777,167.96,167.93,16.3382]
[1729549803805,9.16,167.98,167.93,13.36]
[1729549804505,2.9778,167.97,167.93,16.3383]
[1729549805499,2.9776,167.98,167.95,2.978]
[1729549807402,2.9779,167.96,167.93,17.82717684]
[1729549807707,2.9779,167.96,167.93,16.3384]
[1729549808004,2.9777,167.97,167.93,16.3384]
[1729549808207,2.9777,167.97,167.93,17.82717684]
[1729549808405,2.9777,167.97,167.93,16.3384]
[1729549808902,2.9777,167.97,167.93,17.82717684]
[1729549809105,2.9777,167.97,167.93,16.3384]
[1729549809297,9.35259268,167.99,167.94,1.48877684]
[1729549809501,0.19259268,167.99,167.96,9.16]
[1729549810002,0.19259268,167.99,167.96,12.1377]
[1729549810906,0.19259268,167.99,167.96,13.62647684]
[1729549811103,0.19259268,167.99,167.96,12.1377]
[1729549811303,0.19259268,167.99,167.96,13.62627283]
[1729549811501,0.19259268,167.99,167.96,12.1377]
[1729549811706,0.19259268,167.99,167.96,13.62627283]
[1729549811905,0.19259268,167.99,167.96,12.1377]
[1729549812108,0.19259268,167.99,167.94,10.4056]
[1729549812404,9.16,167.98,167.95,5.68855845]
[1729549812608,9.16,167.98,167.95,4.2]
[1729549813314,2.9778,167.97,167.95,4.2]
[1729549815805,9.16,167.96,167.92,4.2]
[1729549816005,9.16,167.95,167.91,5.68897675]
[1729549816309,2.9784,167.94,167.91,5.68900097]
[1729549816810,2.9784,167.94,167.91,4.2]
[1729549817505,2.9784,167.94,167.91,1.48900097]
[1729549817701,12.1386,167.92,167.91,1.48900097]
[1729549817905,12.1386,167.92,167.9,1.48900097]
[1729549818100,2.9786,167.92,167.9,1.48900097]
[1729549818307,4.14829268,167.99,167.91,9.16]
[1729549818608,9.16,167.97,167.92,1.48900097]
[1729549819312,2.978,167.96,167.92,4.46750097]
[1729549819512,12.138,167.96,167.92,4.46750097]
[1729549819904,12.138,167.96,167.92,2.9785]
[1729549820809,12.138,167.96,167.92,4.46750097]
[1729549821008,12.138,167.96,167.92,2.9785]
[1729549821209,12.138,167.96,167.92,4.46750097]
[1729549821409,12.138,167.96,167.92,2.9785]
[1729549821605,12.138,167.96,167.92,4.46750097]
[1729549821806,12.138,167.96,167.92,2.9785]
[1729549822316,12.138,167.96,167.92,4.46750097]
[1729549822512,12.138,167.96,167.92,2.9785]
[1729549822710,2.9776,167.98,167.94,12.1382]
[1729549823018,0.19259268,167.99,167.94,9.16]
[1729549823217,2.9779,167.96,167.94,1.48900097]
[1729549823514,2.9779,167.96,167.92,2.9785]
[1729549823515,9.16,167.95,167.92,1.48900097]
[1729549823911,12.1382,167.95,167.92,1.48900097]
[1729549825510,12.1382,167.95,167.91,5.68900097]
[1729549826009,12.1382,167.95,167.92,2.9786]
[1729549826513,0.19259268,167.99,167.94,9.16]
[1729549826703,0.19259268,167.99,167.97,12.1376]
[1729549827108,0.19259268,167.99,167.97,9.16]
[1729549827309,0.19259268,167.99,167.98,2.9775]
[1729549827914,0.19259268,167.99,167.96,5.68863659]
[1729549828102,0.19259268,167.99,167.96,4.2]
[1729549828307,0.19259268,167.99,167.96,5.68863659]
[1729549829205,0.19259268,167.99,167.97,2.9777]
[1729549831620,0.19259268,167.99,167.98,2.9775]
[1729549832716,0.19259268,167.99,167.96,13.36]
[1729549833018,0.19259268,167.99,167.97,2.9777]
[1729549834709,0.19259268,167.99,167.97,12.1377]
[1729549846622,0.19259268,167.99,167.97,13.62628781]
[1729549847220,0.19259268,167.99,167.98,9.16]
[1729549847417,0.19259268,167.99,167.98,13.62608781]
[1729549849321,0.19259268,167.99,167.98,12.1375]
[1729549849519,0.19259268,167.99,167.98,13.62583057]
[1729549850431,0.19259268,167.99,167.98,12.1375]
[1729549850631,0.19259268,167.99,167.98,13.62583057]
[1729549850822,0.19259268,167.99,167.98,12.1375]
[1729549851019,0.19259268,167.99,167.98,13.62583057]
[1729549852322,0.19259268,167.99,167.98,12.1375]
[1729549852519,0.19259268,167.99,167.98,13.62581484]
[1729549853326,0.19259268,167.99,167.98,12.1375]
[1729549853525,0.19259268,167.99,167.98,13.62581484]
[1729549853828,0.19259268,167.99,167.98,12.1375]
[1729549854028,0.19259268,167.99,167.98,13.62581484]
[1729549854228,0.19259268,167.99,167.98,12.1375]
[1729549854425,0.19259268,167.99,167.98,13.62581484]
[1729549854624,0.19259268,167.99,167.98,12.1375]
[1729549854823,0.19259268,167.99,167.98,13.62581484]
[1729549855024,0.19259268,167.99,167.98,12.1375]
[1729549855231,0.19259268,167.99,167.98,13.62581484]
[1729549855527,0.19259268,167.99,167.98,12.1375]
[1729549855730,0.19259268,167.99,167.98,13.62581484]
[1729549855931,0.19259268,167.99,167.98,12.1375]
[1729549856119,0.19259268,167.99,167.98,13.62581484]
[1729549856325,0.19259268,167.99,167.98,12.1375]
[1729549856534,0.19259268,167.99,167.98,13.62581484]
[1729549856729,0.19259268,167.99,167.98,12.1375]
[1729549857022,0.19259268,167.99,167.98,13.62581484]
[1729549857226,0.19259268,167.99,167.98,12.1375]
[1729549857431,0.19259268,167.99,167.98,13.62581484]
[1729549857625,0.19259268,167.99,167.98,12.1375]
[1729549857825,0.19259268,167.99,167.98,13.62581484]
[1729549858021,0.19259268,167.99,167.98,12.1375]
[1729549858220,0.19259268,167.99,167.98,13.62581484]
[1729549858426,0.19259268,167.99,167.98,12.1375]
[1729549861124,0.74765675,168.0,167.99,2.9774]
[1729549861327,0.74765675,168.0,167.99,12.1374]
[1729549868341,0.74765675,168.0,167.97,4.2]
[1729549868546,0.74765675,168.0,167.97,13.36]
[1729549870048,0.74765675,168.0,167.98,2.9775]
[1729549871645,0.74765675,168.0,167.95,1.48844208]
[1729549871852,0.74765675,168.0,167.94,2.5944]
[1729549871853,0.74765675,168.0,167.97,2.9777]
[1729549873048,0.74765675,168.0,167.96,9.16]
[1729549873242,3.72485675,168.0,167.96,12.1378]
[1729549874157,3.72485675,168.0,167.96,9.16]
[1729549874357,3.72485675,168.0,167.97,2.9777]
[1729549875055,2.9774,167.99,167.95,2.978]
[1729549875250,9.16,167.99,167.93,10.64844208]
[1729549875450,9.16,167.99,167.93,13.36]
[1729549875653,2.9777,167.98,167.94,2.9781]
[1729549877554,2.9777,167.98,167.94,12.1381]
[1729549877952,2.9777,167.98,167.95,9.16]
[1729549878461,5.02525675,168.0,167.96,2.9778]
[1729549878758,5.02525675,168.0,167.96,12.1378]
[1729549878957,3.72495675,168.0,167.96,12.1378]
[1729549884366,12.88495675,168.0,167.96,12.1378]
[1729549886263,12.88495675,168.0,167.96,2.9778]
[1729549888974,9.16,167.98,167.94,1.48865159]
[1729549889277,9.16,167.95,167.9,13.36]
[1729549889469,12.1381,167.95,167.92,2.9786]
[1729549890168,9.16,167.95,167.91,1.48865159]
[1729549890473,9.16,167.94,167.88,14.84884884]
[1729549890662,9.16,167.94,167.89,4.46784884]
[1729549891164,9.16,167.94,167.89,1.48884884]
[1729549891165,9.16,167.92,167.89,1.48884884]
[1729549891361,9.16,167.9,167.85,103.95493956]
[1729549891563,9.16,167.87,167.86,1.4891327]
[1729549891771,9.16,167.87,167.82,7.1802]
[1729549891772,2.9797,167.86,167.82,7.1802]
[1729549891965,2.9797,167.86,167.83,1.4891327]
[1729549892161,12.19627406,167.87,167.83,1.4891327]
[1729549892368,3.03627406,167.87,167.82,13.36]
[1729549892572,1.3318,167.91,167.86,9.16]
[1729549892773,4.3107,167.91,167.88,9.16]
[1729549892969,1.3318,167.91,167.88,9.16]
[1729549893472,2.979,167.9,167.88,9.16]
[1729549894664,2.979,167.9,167.83,1.4891327]
[1729549894872,2.979,167.9,167.86,12.1396]
[1729549895676,2.979,167.9,167.86,2.9796]
[1729549897374,9.16,167.88,167.79,1.48930367]
[1729549897675,1.3318,167.91,167.82,2.9802]
[1729549897676,12.1397,167.86,167.82,2.9802]
[1729549898971,9.16,167.86,167.81,2.9804]
[1729549899182,9.16,167.84,167.78,1.48930367]
[1729549899385,9.16,167.84,167.79,13.36]
[1729549899676,12.1397,167.86,167.81,9.16]
[1729549900966,12.1397,167.86,167.82,2.9804]
[1729549901276,2.9804,167.82,167.78,5.68930367]
[1729549901484,9.16,167.82,167.78,7.181]
[1729549902566,2.99738622,167.85,167.79,12.1408]
[1729549902782,7.1794,167.88,167.81,9.16]
[1729549902967,7.1794,167.88,167.78,4.2]
[1729549902968,1.3318,167.91,167.83,9.16]
[1729549903172,9.16,167.88,167.83,12.1401]
[1729549903479,9.16,167.86,167.82,4.2]
[1729549904378,9.16,167.86,167.81,9.16]